lending/lending_fUSD_20251107
["ID","MTS","AMOUNT","RATE_DAILY","PERIOD"]
[393337199,1762488652554,-1000.0,0.00038685,7]
[393337200,1762488652566,-1000.0,0.0003869,7]
[393337201,1762488652575,-1188.0,0.00038692,2]
[393337202,1762488652585,-905.0,0.00038692,2]
[393337203,1762488652594,-6659.0,0.00038692,2]
[393337204,1762488652604,-2142.0,0.00038692,2]
[393337205,1762488652613,-6476.0,0.00038692,2]
[393337206,1762488652623,-1000.0,0.00038693,7]
[393337207,1762488652632,-800.0,0.00038697,30]
[393337208,1762488652641,-300.0,0.00038698,2]
[393337209,1762488652650,-204.49895673,0.000387,120]
[393337210,1762488652660,-185.2991992,0.000387,120]
[393337211,1762488652669,-1500.08667512,0.000387,120]
[393337212,1762488652680,-170.26142591,0.000387,120]
[393337213,1762488652689,-215.4915425,0.000387,120]
[393337214,1762488652698,-300.0,0.000387,17]
[393337215,1762488652708,-191.23427542,0.000387,120]
[393337216,1762488652717,-395.0,0.000387,2]
[393337217,1762488652727,-400.0,0.000387,14]
[393337218,1762488652736,-184.12,0.000387,38]
[393337219,1762488652746,-302.0,0.000387,2]
[393337220,1762488652756,-445.0,0.000387,2]
[393337221,1762488652765,-1005.0,0.000387,7]
[393337222,1762488652775,-500.0,0.00038703,30]
[393337223,1762488652784,-1000.0,0.0003871,7]
[393337224,1762488652794,-1000.0,0.00038712,7]
[393337225,1762488652803,-17044.0,0.00038712,120]
[393337226,1762488652812,-1000.0,0.00038718,7]
[393337227,1762488652822,-150.0,0.00038719,7]
[393337228,1762488652831,-300.0,0.0003872,2]
[393337229,1762488652840,-1000.0,0.00038722,2]
[393337230,1762488652849,-6122.71644,0.00038723,2]
[393337231,1762488652860,-525.5272976,0.00038723,2]
[393337232,1762488652869,-1000.0,0.00038725,7]
[393337233,1762488652879,-300.0,0.00038727,2]
[393337234,1762488652889,-151.0,0.0003873,14]
[393337235,1762488652898,-1000.0,0.00038731,7]
[393337236,1762488652907,-722.9,0.00038733,30]
[393337237,1762488652916,-722.9,0.00038733,30]
[393337238,1762488652926,-368.26730181,0.00038733,30]
[393337239,1762488652936,-200.0,0.00038733,2]
[393337240,1762488652946,-155.0,0.00038733,30]
[393337241,1762488652955,-155.07611425,0.00038733,30]
[393337242,1762488652965,-152.0,0.00038733,30]
[393337243,1762488652974,-155.37333694,0.00038733,30]
[393337244,1762488652983,-1391.75150663,0.00038733,30]
[393337245,1762488652992,-152.0,0.00038733,30]
[393337246,1762488653002,-152.0,0.00038733,30]
[393337247,1762488653012,-240.31495822,0.00038733,30]
[393337248,1762488653022,-151.0,0.00038733,30]
[393337249,1762488653032,-151.0,0.00038733,30]
[393337250,1762488653042,-826.0,0.00038733,30]
[393337251,1762488653052,-151.0,0.00038733,30]
[393337252,1762488653062,-425.04503646,0.00038733,30]
[393337253,1762488653073,-151.0,0.00038733,30]
[393337254,1762488653083,-151.0,0.00038733,30]
[393337255,1762488653098,-151.0,0.00038733,30]
[393337256,1762488653109,-151.0,0.00038733,30]
[393337257,1762488653120,-151.0,0.00038733,30]
[393337258,1762488653130,-151.0,0.00038733,30]
[393337259,1762488653140,-151.0,0.00038733,30]
[393337260,1762488653150,-151.0,0.00038733,30]
[393337261,1762488653160,-151.0,0.00038733,30]
[393337262,1762488653170,-151.0,0.00038733,30]
[393337263,1762488653186,-151.0,0.00038733,30]
[393337264,1762488653196,-151.0,0.00038733,30]
[393337265,1762488653207,-151.0,0.00038733,30]
[393337266,1762488653217,-151.0,0.00038733,30]
[393337267,1762488653227,-151.0,0.00038733,30]
[393337268,1762488653236,-151.0,0.00038733,30]
[393337269,1762488653245,-151.0,0.00038733,30]
[393337270,1762488653255,-151.0,0.00038733,30]
[393337271,1762488653264,-151.0,0.00038733,30]
[393337272,1762488653275,-151.0,0.00038733,30]
[393337273,1762488653284,-151.0,0.00038733,30]
[393337274,1762488653294,-151.0,0.00038733,30]
[393337275,1762488653304,-151.0,0.00038733,30]
[393337276,1762488653315,-151.0,0.00038733,30]
[393337277,1762488653325,-151.0,0.00038733,30]
[393337278,1762488653335,-151.0,0.00038733,30]
[393337279,1762488653345,-151.0,0.00038733,30]
[393337280,1762488653355,-151.0,0.00038733,30]
[393337281,1762488653366,-151.0,0.00038733,30]
[393337282,1762488653376,-151.0,0.00038733,30]
[393337283,1762488653386,-151.0,0.00038733,30]
[393337284,1762488653396,-151.0,0.00038733,30]
[393337285,1762488653407,-151.0,0.00038733,30]
[393337286,1762488653417,-151.0,0.00038733,30]
[393337287,1762488653429,-151.0,0.00038733,30]
[393337288,1762488653439,-151.0,0.00038733,30]
[393337289,1762488653449,-151.0,0.00038733,30]
[393337290,1762488653459,-151.0,0.00038733,30]
[393337291,1762488653469,-151.0,0.00038733,30]
[393337292,1762488653480,-151.0,0.00038733,30]
[393337293,1762488653494,-151.0,0.00038733,30]
[393337294,1762488653504,-190.52655264,0.00038733,30]
[393337295,1762488653521,-200.0,0.00038733,2]
[393337296,1762488653532,-704436.72959018,0.00038733,30]
[393337297,1762488653542,-283735.73029163,0.00038733,2]
[393337298,1762488653551,-21261.2545558,0.00038742,120]
[393337299,1762488653561,-1000.0,0.00038742,2]
[393337300,1762488653572,-283735.73029163,0.00038743,2]
[393337301,1762488653582,-283735.73029163,0.00038743,2]
[393337302,1762488653592,-107562.87535643,0.00038743,2]
[393337303,1762488653762,-382.09999999,0.00020692,2]
[393337304,1762488653775,-176.90000001,0.00020692,2]
[393337305,1762488653786,-4848.53760675,0.00038743,2]
[393337306,1762488653799,-354.46065198,0.00038743,2]
[393337307,1762488653811,-2162.60261858,0.00038743,2]
[393337308,1762488653823,-523.59029121,0.00038743,2]
[393337309,1762488653843,-500.0,0.00032876,2]
[393337310,1762488653853,-46.72184332,0.00038743,2]
[393337311,1762488653998,-452.20582707,0.00023692,2]
[393337312,1762488654021,-151.0,0.00018832,2]
[393337313,1762488654031,-151.0,0.00018873,2]
[393337314,1762488654041,-106.79417293,0.00023692,2]
[393337315,1762488654051,-146.60582707,0.00026692,2]
[393337316,1762488654063,-412.39417293,0.00026692,2]
[393337317,1762488654073,-377.56582706,0.00029692,2]
[393337318,1762488654088,-181.43417294,0.00029692,2]
[393337319,1762488654097,-559.0,0.00032692,2]
[393337320,1762488654107,-500.0,0.00032876,2]
[393337321,1762488654116,-500.0,0.00032876,2]
[393337322,1762488654126,-500.0,0.00032876,2]
[393337323,1762488654136,-500.0,0.00032876,2]
[393337324,1762488654146,-500.0,0.00032876,2]
[393337325,1762488654155,-500.0,0.00032876,2]
[393337326,1762488654165,-500.0,0.00032876,2]
[393337327,1762488654175,-358.165826,0.00032876,2]
[393337328,1762488654464,-399.79800001,0.00023473,2]
[393337329,1762488654498,-97.4526474,0.00023473,2]
[393337330,1762488654509,-141.834174,0.00032876,2]
[393337331,1762488654518,-500.0,0.00032876,2]
[393337332,1762488654529,-500.0,0.00032876,2]
[393337333,1762488654539,-500.0,0.00032876,2]
[393337334,1762488654548,-500.0,0.00032876,2]
[393337335,1762488654559,-500.0,0.00032876,2]
[393337336,1762488654569,-184.34971309,0.00032876,2]
[393337337,1762488654579,-559.0,0.00035692,2]
[393337338,1762488654588,-180.48887922,0.00038642,2]
[393337339,1762488654598,-559.0,0.00038692,2]
[393337340,1762488654608,-1631.45877472,0.00038743,2]
[393337341,1762488654619,-754.55914317,0.00038743,2]
[393337342,1762488654632,-455.83943095,0.00038743,2]
[393337343,1762488654642,-7265.0,0.00038743,2]
[393337344,1762488654705,-18320.70898381,0.00038743,2]
[393337345,1762488654717,-5274.5026075,0.00038743,2]
[393337346,1762488654728,-1088.82496,0.00038743,2]
[393337347,1762488654739,-507.64403307,0.00038743,2]
[393337348,1762488654751,-3276.41768724,0.00038743,2]
[393337349,1762488654783,-384.53244832,0.00038743,2]
[393337350,1762488654795,-2753.53317776,0.00038743,2]
[393337351,1762489160530,185.56,0.0001386,2]
[393337352,1762489207771,150.0,0.00017324,120]
[393337354,1762489515252,1000.0,0.00038748,30]
[393337355,1762489515512,1000.0,0.00038748,30]
[393337356,1762489515776,1000.0,0.00038748,30]
[393337357,1762489516022,1000.0,0.00038748,30]
[393337358,1762489585611,305.0,0.00038748,30]
[393337359,1762489676302,-9814.45,0.00015,2]
[393337360,1762489676735,-10000.01,0.00015,2]
[393337361,1762489676848,-10000.01,0.00015,2]
[393337362,1762489676959,-10000.01,0.00015,2]
[393337363,1762489677778,-166.66,0.00015,2]
[393337364,1762489679035,-10000.01,0.00015,2]
[393337365,1762489685039,-10000.01,0.00015,2]
[393337366,1762489687050,565.84422964,0.000135,2]
[393337367,1762489688813,-166.66,0.00015,2]
[393337368,1762489691121,-10000.01,0.00015,2]
[393337369,1762489692475,-232.62101819,0.00015,2]
[393337370,1762489698238,-379.07079502,0.00015,2]
[393337371,1762489700873,-347.98478835,0.00015,2]
[393337372,1762489702238,222.07509387,0.0001,2]
[393337373,1762489702332,-200.96760408,0.00015,2]
[393337374,1762489703841,-185.39804047,0.00015,2]
[393337375,1762489723646,-181.42577871,0.00014999,2]
[393337376,1762489724457,-43.32782921,0.00014999,2]
[393337377,1762489724488,-500.0,0.00014999,2]
[393337378,1762489724516,-344.60409031,0.00014999,2]
[393337379,1762489724545,-179.01260258,0.00014999,2]
[393337380,1762489724574,-340.45958136,0.00014999,2]
[393337381,1762489724603,-542.94468656,0.00014999,2]
[393337382,1762489724636,-500.0,0.00014999,2]
[393337383,1762489724672,-500.0,0.00014999,2]
[393337384,1762489724705,-500.0,0.00014999,2]
[393337385,1762489724736,-500.0,0.00014999,2]
[393337386,1762489724774,-500.0,0.00014999,2]
[393337387,1762489724807,-500.0,0.00014999,2]
[393337388,1762489724983,-500.0,0.00014999,2]
[393337389,1762489725016,-500.0,0.00014999,2]
[393337390,1762489725051,-500.0,0.00014999,2]
[393337391,1762489725084,-534.99820803,0.00014999,2]
[393337392,1762489725117,-500.0,0.00014999,2]
[393337393,1762489725149,-500.0,0.00014999,2]
[393337394,1762489725384,-3807.25091003,0.00015,2]
[393337395,1762489725404,-10000.01,0.00015,2]
[393337396,1762489725422,-10000.01,0.00015,2]
[393337397,1762489725449,-261.01570103,0.00015,2]
[393337398,1762489725463,-10000.01,0.00015,2]
[393337399,1762489725476,-10000.01,0.00015,2]
[393337400,1762489727287,-10000.01,0.00015,2]
[393337401,1762489727359,-251.77247408,0.00015,2]
[393337402,1762489727386,-10000.01,0.00015,2]
[393337403,1762489733326,-10000.01,0.00015,2]
[393337404,1762489733433,-10000.01,0.00015,2]
[393337405,1762489758118,-201.22298519,0.00014999,2]
[393337406,1762489758139,-528.12957404,0.00015,2]
[393337407,1762489759750,843.84,0.00013699,2]
[393337408,1762489762121,300.0,0.000145,5]
[393337409,1762489762146,-151.0,0.00014997,2]
[393337410,1762489762170,-134.56112641,0.00014997,2]
[393337411,1762489763288,464.09640448,0.000149,2]
[393337412,1762489763635,-16.43887359,0.00014997,2]
[393337413,1762489763656,-158.42178585,0.00014997,2]
[393337414,1762489763680,-143.66689555,0.00015,2]
[393337415,1762489764216,700.0,0.000146,5]
[393337417,1762489766305,1100.0,0.000147,5]
[393337418,1762489768444,1500.0,0.000148,5]
[393337419,1762489770533,1900.0,0.000149,5]
[393337420,1762489780691,-219.46346885,0.00015,2]
[393337421,1762489782742,-243.88170725,0.00015,2]
[393337422,1762489788306,-234.71212804,0.00015,2]
[393337423,1762489790378,-370.48060137,0.00015,2]
[393337424,1762489793021,-250.00893,0.00015,2]
[393337426,1762489795694,-319.24702903,0.00015,2]
[393337427,1762489799080,-221.96915492,0.00015,2]
[393337428,1762489800766,-558.4909525,0.00015,2]
[393337429,1762489803579,178.19806557,0.000149,2]
[393337430,1762489804725,-208.71278554,0.00014999,2]
[393337431,1762489805436,444.0,0.00014959,2]
[393337432,1762489805512,167.0,0.00014959,2]
[393337433,1762489806232,-91.28721446,0.00014999,2]
[393337434,1762489806255,-125.1981697,0.00014999,2]
[393337435,1762489807711,-165.17624386,0.00014999,2]
[393337436,1762489811898,-9.62558644,0.00014999,2]
[393337437,1762489811929,-300.0,0.00014999,2]
[393337438,1762489811957,-1200.0,0.00014999,2]
[393337439,1762489811985,-150.0,0.00014999,2]
[393337440,1762489813545,-193.0,0.00014999,2]
[393337441,1762489813568,-9.83002145,0.00015,2]
[393337442,1762489816187,-154.48978965,0.00015,2]
[393337443,1762489819897,706.55858938,0.0001499,2]
[393337444,1762489819958,706.55858938,0.0001499,2]
[393337445,1762489820628,-30.6801889,0.00015,2]
[393337446,1762489820650,-263.22199251,0.00015,2]
[393337447,1762489822125,-36.77800749,0.00015,2]
[393337448,1762489822149,-129.88199251,0.00015,2]
[393337449,1762489824593,2400.46284297,0.000149,2]
[393337450,1762489830857,180.32325071,0.000149,2]
[393337457,1762489831732,-344.81,0.00015,2]
[393337459,1762489831744,-2348.45896416,0.00015,2]
[393337466,1762489831803,-2531.95584394,0.00015,2]
[393337467,1762489831815,-8018.56662172,0.00015,2]
[393337468,1762489831859,-3233.04344077,0.00015,2]
[393337469,1762489831873,-506.58,0.00015,2]
[393337470,1762489831885,-107262.40801697,0.00015,2]
[393337471,1762489831918,-8084.58288275,0.00015,2]
[393337472,1762489831929,-525.74328535,0.00015,2]
[393337473,1762489831940,-1367.74106718,0.00015,2]
[393337474,1762489831952,-578.1981307,0.00015,2]
[393337475,1762489831963,-1603.77847889,0.00015,2]
[393337476,1762489832028,-244780.36219558,0.00015,2]
[393337477,1762489832040,-840.82494719,0.00015,2]
[393337491,1762489832237,-166.66,0.00015,2]
[393337497,1762489833692,500.0,0.00014999,2]
[393337498,1762489833986,500.0,0.00014999,2]
[393337499,1762489834258,500.0,0.00014999,2]
[393337500,1762489834504,500.0,0.00014999,2]
[393337501,1762489834748,500.0,0.00014999,2]
[393337502,1762489835010,186.85555468,0.00014999,2]
[393337503,1762489835034,313.14444532,0.00014999,2]
[393337504,1762489835243,258.58,0.00014999,2]
[393337505,1762489836742,-156.91050257,0.00015,2]
[393337506,1762489837703,-2698.26467723,0.00015,2]
[393337507,1762489837714,-4583690.61876965,0.00015,2]
[393337508,1762489837724,-170131.91729417,0.00015,3]
[393337509,1762489837733,-5860.32671619,0.00015,2]
[393337510,1762489837742,-412.75188929,0.00015,2]
[393337511,1762489837751,-2500.0,0.00015,2]
[393337512,1762489837760,-193.0,0.00015008,2]
[393337513,1762489837770,-193.0,0.00015008,2]
[393337514,1762489837779,-195.0,0.00015043,2]
[393337515,1762489837788,-300.0,0.00015043,2]
[393337516,1762489837797,-311.77463511,0.00015043,2]
[393337517,1762489837807,-500.0,0.00015068,2]
[393337518,1762489837816,-500.0,0.00015068,2]
[393337519,1762489837826,-579.3877229,0.00015068,2]
[393337520,1762489837835,-481.26964055,0.00015104,2]
[393337521,1762489837844,-250.0,0.0001515,2]
[393337522,1762489837854,-1517.64,0.000153,2]
[393337523,1762489837866,-464.09640445,0.00015614,2]
[393337524,1762489837876,-250.0,0.00015678,2]
[393337525,1762489837885,-250.0,0.00015908,2]
[393337526,1762489837895,-255.0,0.00016124,2]
[393337527,1762489837906,-5000.00999582,0.000162,5]
[393337528,1762489837918,-464.09640445,0.00016329,2]
[393337529,1762489837927,-420.0,0.00016416,2]
[393337530,1762489837936,-420.0,0.00016416,2]
[393337531,1762489837946,-1349.43,0.00016438,2]
[393337532,1762489837955,-195.0,0.00016499,2]
[393337533,1762489837964,-300.0,0.00016499,2]
[393337534,1762489837973,-197.18308,0.00016499,2]
[393337535,1762489837982,-193.0,0.00016499,2]
[393337536,1762489837991,-200.0,0.00016499,2]
[393337537,1762489838000,-200.0,0.00016499,2]
[393337538,1762489838010,-200.0,0.00016499,2]
[393337539,1762489838019,-200.0,0.00016499,2]
[393337540,1762489838029,-201.61257308,0.00016499,2]
[393337541,1762489838038,-300.0,0.00016499,2]
[393337542,1762489838048,-300.0,0.00016499,2]
[393337543,1762489838058,-300.0,0.00016499,2]
[393337544,1762489838068,-1680.0,0.00016499,2]
[393337545,1762489838078,-250.0,0.000165,2]
[393337546,1762489838087,-2500.0,0.000165,2]
[393337547,1762489838097,-195.0,0.000165,2]
[393337548,1762489838106,-193.0,0.000165,2]
[393337549,1762489838115,-300.0,0.000165,2]
[393337550,1762489838125,-225.63017445,0.000165,2]
[393337551,1762489838134,-150.0,0.000165,2]
[393337552,1762489838144,-2500.0,0.000165,2]
[393337553,1762489838153,-1200.0,0.00016603,2]
[393337554,1762489838163,-29177.28,0.00016604,2]
[393337555,1762489838173,-188.51,0.00016712,2]
[393337556,1762489838183,-4391.4598,0.0001689,2]
[393337557,1762489838193,-400.0,0.000169,6]
[393337558,1762489838203,-300.0,0.000169,6]
[393337559,1762489838212,-500.0,0.00016973,2]
[393337560,1762489838222,-500.0,0.00016973,2]
[393337561,1762489838232,-165.93177129,0.00016973,2]
[393337562,1762489838241,-552.1894013,0.00016973,2]
[393337563,1762489838251,-502.91660732,0.00016973,2]
[393337564,1762489838260,-164.13523075,0.00016973,2]
[393337565,1762489838269,-500.0,0.00016973,2]
[393337566,1762489838279,-214.84899531,0.00016973,2]
[393337567,1762489838288,-500.0,0.00016973,2]
[393337568,1762489838297,-426.80169483,0.00016973,2]
[393337569,1762489838306,-500.86715567,0.00016973,2]
[393337570,1762489838315,-500.0,0.00016973,2]
[393337571,1762489838324,-500.0,0.00016973,2]
[393337572,1762489838334,-516.70143918,0.00016973,2]
[393337573,1762489838343,-167.42370191,0.00016973,2]
[393337574,1762489838352,-500.0,0.00016973,2]
[393337575,1762489838361,-274.37432305,0.00016973,2]
[393337576,1762489838370,-410.82232731,0.00016973,2]
[393337577,1762489838379,-500.0,0.00016973,2]
[393337578,1762489838387,-500.0,0.00016973,2]
[393337579,1762489838396,-500.0,0.00016973,2]
[393337580,1762489838406,-500.0,0.00016973,2]
[393337581,1762489838415,-500.0,0.00016973,2]
[393337582,1762489838424,-500.0,0.00016973,2]
[393337583,1762489838433,-199058.63672774,0.0001699,2]
[393337584,1762489838442,-250.0,0.00017,2]
[393337585,1762489838452,-464.09640445,0.00017043,2]
[393337586,1762489838461,-223.18267872,0.00017249,7]
[393337587,1762489838470,-410.96302396,0.0001725,2]
[393337588,1762489838479,-495.58,0.00017253,2]
[393337589,1762489838488,-279.795,0.00017299,2]
[393337590,1762489838498,-7499.15449589,0.00017299,2]
[393337591,1762489838508,-2559.30481012,0.00017299,2]
[393337592,1762489838516,-151.23261491,0.00017299,2]
[393337593,1762489838525,-150.0,0.00017324,2]
[393337594,1762489838534,-433.0,0.00017339,2]
[393337595,1762489838543,-9999.99,0.00017372,2]
[393337596,1762489838552,-9999.99,0.00017372,2]
[393337597,1762489838561,-999.99,0.00017372,2]
[393337598,1762489838570,-501.0816036,0.00017373,2]
[393337599,1762489838579,-500.73063442,0.00017373,2]
[393337600,1762489838589,-529.41889361,0.00017373,2]
[393337601,1762489838598,-269.52066072,0.00017373,2]
[393337602,1762489838607,-12027.77,0.00017373,2]
[393337603,1762489838617,-9999.99,0.00017373,2]
[393337604,1762489838626,-5800.99,0.00017373,2]
[393337605,1762489838635,-150.99,0.00017373,2]
[393337606,1762489838644,-1186.56,0.00017373,2]
[393337607,1762489838654,-1360.12,0.00017373,2]
[393337608,1762489838663,-500.0,0.00017373,2]
[393337609,1762489838672,-500.0,0.00017373,2]
[393337610,1762489838682,-500.0,0.00017373,2]
[393337611,1762489838691,-500.0,0.00017373,2]
[393337612,1762489838700,-500.0,0.00017373,2]
[393337613,1762489838709,-500.0,0.00017373,2]
[393337614,1762489838719,-500.2462784,0.00017373,2]
[393337615,1762489838728,-500.0,0.00017373,2]
[393337616,1762489838737,-500.0,0.00017373,2]
[393337617,1762489838746,-500.0,0.00017373,2]
[393337618,1762489838755,-500.40959202,0.00017373,2]
[393337619,1762489838765,-500.0,0.00017373,2]
[393337620,1762489838773,-500.0,0.00017373,2]
[393337621,1762489838782,-505.50862562,0.00017373,2]
[393337622,1762489838791,-151.0,0.00017388,2]
[393337623,1762489838800,-151.0,0.00017388,2]
[393337624,1762489838810,-151.0,0.00017388,2]
[393337625,1762489838819,-151.0,0.00017388,2]
[393337626,1762489838828,-151.0,0.00017388,2]
[393337627,1762489838837,-151.0,0.00017388,2]
[393337628,1762489838847,-151.0,0.00017388,2]
[393337629,1762489838856,-151.0,0.00017388,2]
[393337630,1762489838866,-151.0,0.00017388,2]
[393337631,1762489838876,-151.0,0.00017388,2]
[393337632,1762489838885,-151.0,0.00017388,2]
[393337633,1762489838894,-151.0,0.00017388,2]
[393337634,1762489838903,-151.0,0.00017388,2]
[393337635,1762489838913,-151.0,0.00017388,2]
[393337636,1762489838922,-151.0,0.00017388,2]
[393337637,1762489838931,-151.0,0.00017388,2]
[393337638,1762489838940,-151.0,0.00017388,2]
[393337639,1762489838950,-183.95678632,0.00017388,2]
[393337640,1762489838959,-706.55858938,0.00017398,2]
[393337641,1762489838968,-500.0,0.00017398,2]
[393337642,1762489838976,-500.0,0.00017398,2]
[393337643,1762489838985,-500.0,0.00017398,2]
[393337644,1762489838994,-500.0,0.00017398,2]
[393337645,1762489839004,-506.9544933,0.00017398,2]
[393337646,1762489839013,-500.0,0.00017398,2]
[393337647,1762489839023,-551.21,0.00017398,2]
[393337648,1762489839032,-500.0,0.00017398,2]
[393337649,1762489839041,-500.0,0.00017398,2]
[393337650,1762489839051,-412.60310062,0.00017398,2]
[393337651,1762489839060,-500.0,0.00017398,2]
[393337652,1762489839070,-500.0,0.00017398,2]
[393337653,1762489839079,-420000.0,0.00017399,2]
[393337654,1762489839089,-1000.0,0.00017399,2]
[393337655,1762489839098,-321259.46,0.00017408,2]
[393337656,1762489839108,-500.0,0.00017473,2]
[393337657,1762489839118,-500.0,0.00017473,2]
[393337658,1762489839128,-330.33341059,0.00017473,2]
[393337659,1762489839138,-500.0,0.00017473,2]
[393337660,1762489839147,-500.0,0.00017473,2]
[393337661,1762489839157,-481.92632213,0.00017473,2]
[393337662,1762489839167,-158.19215752,0.00017473,2]
[393337663,1762489839177,-500.0,0.00017473,2]
[393337664,1762489839186,-500.0,0.00017473,2]
[393337665,1762489839196,-635.57618945,0.00017473,2]
[393337666,1762489839205,-500.77100973,0.00017473,2]
[393337667,1762489839215,-500.85457018,0.00017473,2]
[393337668,1762489839224,-465.14690898,0.00017473,2]
[393337669,1762489839234,-500.0,0.00017473,2]
[393337670,1762489839244,-500.0,0.00017473,2]
[393337671,1762489839254,-500.0,0.00017473,2]
[393337672,1762489839263,-500.0,0.00017473,2]
[393337673,1762489839272,-500.0,0.00017498,2]
[393337674,1762489839281,-502.64787463,0.00017521,2]
[393337675,1762489839290,-1000.0,0.00017521,2]
[393337676,1762489839300,-506.69181721,0.00017521,2]
[393337677,1762489839310,-1000.0,0.00017521,2]
[393337678,1762489839319,-500.0,0.00017521,2]
[393337679,1762489839328,-1004.43139356,0.00017521,2]
[393337680,1762489839338,-1000.0,0.00017521,2]
[393337681,1762489839346,-1000.0,0.00017521,2]
[393337682,1762489839356,-1000.0,0.00017521,2]
[393337683,1762489839365,-1000.0,0.00017521,2]
[393337684,1762489839374,-800.0,0.000176,6]
[393337685,1762489839383,-1200.0,0.000177,6]
[393337686,1762489839393,-410.96302396,0.00017711,2]
[393337687,1762489839402,-464.09640445,0.00017757,2]
[393337688,1762489839411,-1600.0,0.000178,6]
[393337689,1762489839421,-2000.0,0.000179,6]
[393337690,1762489839430,-300.0,0.000179,6]
[393337691,1762489839440,-1000.0,0.00017921,2]
[393337692,1762489839449,-1000.0,0.00017921,2]
[393337693,1762489839458,-992.63712394,0.00017921,2]
[393337694,1762489839467,-1000.0,0.00017921,2]
[393337695,1762489839476,-1000.0,0.00017921,2]
[393337696,1762489839485,-1000.0,0.00017921,2]
[393337697,1762489839494,-1000.0,0.00017921,2]
[393337698,1762489839502,-1000.0,0.00017921,2]
[393337699,1762489839511,-1000.0,0.00017921,2]
[393337700,1762489839520,-716.85911878,0.00017921,2]
[393337701,1762489839529,-1092.12362524,0.00017921,2]
[393337702,1762489839538,-587.0,0.00017966,2]
[393337703,1762489839548,-587.0,0.00017966,2]
[393337704,1762489839557,-3459185.11801117,0.00018,2]
[393337705,1762489839566,-883.9094268,0.00018,2]
[393337706,1762489839575,-1179.22434804,0.00018,2]
[393337707,1762489839585,-510.5905813,0.00018021,2]
[393337708,1762489839594,-1013.74679932,0.00018021,2]
[393337709,1762489839603,-1000.0,0.00018021,2]
[393337710,1762489839612,-183.63983714,0.00018021,2]
[393337711,1762489839621,-172.40826591,0.00018021,2]
[393337712,1762489839630,-1000.0,0.00018021,2]
[393337713,1762489839639,-1000.0,0.00018021,2]
[393337714,1762489839648,-1000.0,0.00018021,2]
[393337715,1762489839658,-1000.0,0.00018021,2]
[393337716,1762489839667,-1002.54057635,0.00018068,2]
[393337717,1762489839676,-1500.0,0.00018068,2]
[393337718,1762489839685,-504.14266789,0.00018068,2]
[393337719,1762489839694,-503.58550355,0.00018068,2]
[393337720,1762489839703,-1500.0,0.00018068,2]
[393337721,1762489839712,-1500.0,0.00018068,2]
[393337722,1762489839721,-1762.9039034,0.000181,2]
[393337723,1762489839730,-2559.30481009,0.00018132,2]
[393337724,1762489839739,-477.99034883,0.00018137,2]
[393337726,1762489839748,-490.0,0.00018141,2]
[393337727,1762489839757,-2351.0,0.00018149,2]
[393337728,1762489839766,-410.96302396,0.00018172,2]
[393337729,1762489839775,-7499.15449585,0.00018342,2]
[393337730,1762489839784,-5000.0,0.00018467,2]
[393337731,1762489839793,-1500.0,0.00018468,2]
[393337732,1762489839802,-1500.0,0.00018468,2]
[393337733,1762489839811,-1500.0,0.00018468,2]